{"text_format":"3","workbook":"xlsx","n_sheets":13,"sheets":["Summary","Kwazulu Natal","Eastern Cape","Free State","Gauteng","Limpopo","Mpumalanga","North West Province","Northern Cape","Western Cape","Roaming","Overborder","Sheet1"],"not_rendered":{"images":1,"defined_names":8,"comments":1},"read":"whole","date_system":"1900"}

{"sheet":"Summary","index":0,"n_rows":31,"n_cols":5,"rows_kept":31,"merged":[[0,0,0,4],[3,0,3,8],[5,0,5,8],[9,0,9,8],[10,0,10,8]]}
["ANNEXURE E TRANSNET SITE LIST\nGEOGRAPHICAL TRANSNET\nOFFICES"]
[]
[]
["Instructions for Completion of the Workbook"]
[]
["Transnet operates in 9 South African provinces and has offices in 9 over border cities (5 countries)."]
["Transnet also operates the trains as indicated under the Roaming Tab."]
["Column B in the table below is indiactive of the number of areas or cities or towns and column C is indicative of the number of sites within a larger area or city or town."]
["The detail for these figures can be found under the applicable tab."]
["The Service Provider (plus its partners and subcontractors) needs to have the geographical reach to provide the required services and support at all Transnet sites within the required service levels."]
["Bidders to indicate \"YES\" if they can reach ALL sites as per the Geographical Location Area or \"NO\" if not able to reach all the sites as per the geographical location area"]
[]
["Geographical Coverage","Number of Areas/Cities/Towns","Number of Sites","Bidders Response (Yes/No)","Provide Physical Address"]
["Eastern Cape",{"$f":"'Eastern Cape'!E56","v":21},{"$f":"'Eastern Cape'!D56","v":53}]
["Free State",{"$f":"'Free State'!E60","v":21},{"$f":"'Free State'!D60","v":57}]
["Gauteng",{"$f":"Gauteng!E128","v":33},{"$f":"Gauteng!D128","v":125}]
["Kwazulu Natal",{"$f":"'Kwazulu Natal'!D172","v":57},{"$f":"'Kwazulu Natal'!E172","v":14}]
["Limpopo",{"$f":"Limpopo!E23","v":13},{"$f":"Limpopo!D23","v":20}]
["Mpumalanga",{"$f":"Mpumalanga!E57","v":25},{"$f":"Mpumalanga!D57","v":54}]
["North West Province",{"$f":"'North West Province'!E29","v":14},{"$f":"Mpumalanga!D57","v":54}]
["Northern Cape",{"$f":"'Northern Cape'!E50","v":20},{"$f":"'Northern Cape'!D50","v":48}]
["Western Cape",{"$f":"'Western Cape'!E64","v":23},{"$f":"'Western Cape'!D64","v":62}]
["Overborder",{"$f":"ROWS(Overborder!A2:C10)","v":9}]
["Roaming (Stations in 9 provinces)",{"$f":"ROWS(Roaming!A2:B4)","v":3}]
["Total",{"$f":"SUM(B14:B24)","v":239},{"$f":"SUM(C14:C24)","v":487}]
[]
[]
[]
[]
["__________________","__________________",null,"__________________"]
["Bidder Company Name","Company Stamp",null,"Date"]

{"sheet":"Kwazulu Natal","index":1,"n_rows":172,"n_cols":5,"rows_kept":172}
["Region","OD","Site / Area / City / Town / Name","Site","Area/\nCity/\nTown"]
["Kwazulu Natal","TPL"," Amanzimtoti",1,1]
["Kwazulu Natal","TE"," Bayhead Crane Road",1,1]
["Kwazulu Natal","TFR"," Bayhead Eel Road",1]
["Kwazulu Natal","TE"," Bayhead Eel Road 150",1]
["Kwazulu Natal","TE"," Bayhead Eel Road 152",1]
["Kwazulu Natal","TE"," Bayhead Eel Road 99",1]
["Kwazulu Natal","TE"," Bayhead Fish Eagle Road (TE)",1]
["Kwazulu Natal","TFR"," Bayhead Fish Eagle Road (TFR)",1]
["Kwazulu Natal","TFR"," Bayhead Langeberg Drive",1]
["Kwazulu Natal","TFR"," Bayhead RF Clark Drive",1]
["Kwazulu Natal","TCC"," Bayhead, 150 Eel Road",1]
["Kwazulu Natal","TCC"," Bayhead, 50 Fis Eagle Road",1]
["Kwazulu Natal","TFR"," Bluff Arum Road",1]
["Kwazulu Natal","TFR"," Bluff End Wharfside Road",1]
["Kwazulu Natal","TCC"," Bluff, 106 Arum Road",1]
["Kwazulu Natal","TCC"," Bluff, 82 Arum Road",1]
["Kwazulu Natal","TFR"," Catoridge",1,1]
["Kwazulu Natal","TFR"," Dalton Hollywood Boulevard",1,1]
["Kwazulu Natal","TFR"," Dundee Karl Landman Road",1,1]
["Kwazulu Natal","TFR"," Dundee Robinson Lane",1]
["Kwazulu Natal","TPL"," Durban Pumpstation",1]
["Kwazulu Natal","TE"," Durban akwood Road",1]
["Kwazulu Natal","TFR"," Durban Alpine Road",1]
["Kwazulu Natal","TE"," Durban Bayhead Road",1]
["Kwazulu Natal","TFR"," Durban Bermwall Road",1]
["Kwazulu Natal","TPL"," Durban Central",1]
["Kwazulu Natal","TFR"," Durban Corobrick Road",1]
["Kwazulu Natal","TE"," Durban Edwin Swales (TE)",1]
["Kwazulu Natal","TFR"," Durban Edwin Swales (TFR)",1]
["Kwazulu Natal","TCC"," Durban Isipingo, 20 Langeberg Road",1]
["Kwazulu Natal","TFR"," Durban Langerburg Road",1]
["Kwazulu Natal","TFR"," Durban Mahatma Ghandi Road Queens warehouse ",1]
["Kwazulu Natal","TFR"," Durban Maydon Road",1]
["Kwazulu Natal","TFR"," Durban Point Road",1]
["Kwazulu Natal","TFR"," Durban Road R102",1]
["Kwazulu Natal","TE"," Durban Soloman Mahlangu Drive",1]
["Kwazulu Natal","TFR"," Durban Umgeni Road",1]
["Kwazulu Natal","TP"," Durban, 1 Service Rd",1]
["Kwazulu Natal","TCC"," Durban, 100 Eel Road",1]
["Kwazulu Natal","TP"," Durban, 202 Anton Lembede ",1]
["Kwazulu Natal","TCC"," Durban, 311 Solomon Mahlangu Drive",1]
["Kwazulu Natal","TCC"," Durban, 45 Bay rrace",1]
["Kwazulu Natal",null,"Port of Durban ",1,3]
["Kwazulu Natal",null,"Port of Durban container Terminal",1]
["Kwazulu Natal","TE"," Empangeni (TE)",1,1]
["Kwazulu Natal","TPL"," Empangeni (TPL)",1]
["Kwazulu Natal","TFR"," Empangeni Dina Lane",1]
["Kwazulu Natal","TFR"," Empangeni Kiewiet Street",1]
["Kwazulu Natal","TFR"," Empangeni Morries Road",1]
["Kwazulu Natal","TFR"," Empangeni Station Road",1]
["Kwazulu Natal","TCC"," Empangeni, 3 Liewiet Road, Nyala Park",1]
["Kwazulu Natal","TFR"," Estcourt",1,1]
["Kwazulu Natal","TPL"," Fort Mistake",1,1]
["Kwazulu Natal","TE"," Glencoe Bigger Street",1,1]
["Kwazulu Natal","TFR"," Glencoe various",1]
["Kwazulu Natal","TFR"," Golela",1,1]
["Kwazulu Natal","TPL"," Hillcrest",1,1]
["Kwazulu Natal","TPL"," Howick",1,1]
["Kwazulu Natal","TFR"," Isipingo",1]
["Kwazulu Natal","TPL"," Island view",1]
["Kwazulu Natal","TFR"," KwaDukuza",1,1]
["Kwazulu Natal","TCC"," KwaDukuza, 1 Via Vernena Road",1]
["Kwazulu Natal","TE"," Ladysmith (TE)",1,1]
["Kwazulu Natal","TPL"," Ladysmith (TPL)",1]
["Kwazulu Natal","TFR"," Ladysmith Diamana Road",1]
["Kwazulu Natal","TFR"," Ladysmith Hyde Road",1]
["Kwazulu Natal","TE"," Ladysmith Jan Smus Avenue",1]
["Kwazulu Natal","TFR"," Ladysmith Lyell Street",1]
["Kwazulu Natal","TFR"," Ladysmith Port Natal Road",1]
["Kwazulu Natal","TFR"," Ladysmith Residency Road",1]
["Kwazulu Natal","TCC"," Ladysmith, 2 Diamana Road",1]
["Kwazulu Natal","TFR"," Mandeni",1,1]
["Kwazulu Natal","TPL"," Mgeni",1,1]
["Kwazulu Natal","TPL"," Mooi River",1,1]
["Kwazulu Natal","TFR"," Mount Edgecomb",1]
["Kwazulu Natal","TFR"," Mtubatuba",1,1]
["Kwazulu Natal","TE"," Newcastle (TE)",1,1]
["Kwazulu Natal","TPL"," Newcastle (TPL)",1]
["Kwazulu Natal","TFR"," Newcastle Albert Wessels Drive",1]
["Kwazulu Natal","TFR"," Newcastle Madadeni Road",1]
["Kwazulu Natal","TFR"," Paulpiersburg",1,1]
["Kwazulu Natal","TE"," Piermaritzburg (TE)",1,1]
["Kwazulu Natal","TPL"," Piermaritzburg Hiltop (TPL)",1]
["Kwazulu Natal","TPL"," Piermaritzburg Duzi",1]
["Kwazulu Natal","TFR"," Piermaritzburg Celtis Road",1]
["Kwazulu Natal","TFR"," Piermaritzburg Devonshire Road",1]
["Kwazulu Natal","TFR"," Piermaritzburg Edendale Road",1]
["Kwazulu Natal","TFR"," Piermaritzburg Mayours Walk",1]
["Kwazulu Natal","TFR"," Piermaritzburg Moses Madiba Drive",1]
["Kwazulu Natal","TFR"," Piermaritzburg Neville Road",1]
["Kwazulu Natal","TFR"," Piermaritzburg Sherwood Road",1]
["Kwazulu Natal","TFR"," Piermaritzburg Victoria Street",1]
["Kwazulu Natal","TPL"," Pinetown Workshop & School of Pipelines",1]
["Kwazulu Natal","TPL"," Pinetown NOC",1,1]
["Kwazulu Natal","TFR"," Port Shepstone",1,1]
["Kwazulu Natal","TPL"," Quagga",1,1]
["Kwazulu Natal","TCC"," Queens Warehouse, 237 Mahatma Gandhi Road",1]
["Kwazulu Natal","TCC"," Queens Warehouse, 89 Helen Joseph Road",1]
["Kwazulu Natal","TE"," Richards Bay",1,1]
["Kwazulu Natal","TFR"," Richards Bay Commodore close",1]
["Kwazulu Natal","TFR"," Richards Bay Main Road",1]
["Kwazulu Natal","TFR"," Richards Bay New Ark Road",1]
["Kwazulu Natal","TFR"," Richards Bay Octopus Road",1]
["Kwazulu Natal","TFR"," Richards Bay Oilco Street",1]
["Kwazulu Natal","TFR"," Richards Bay San Thom Road",1]
["Kwazulu Natal","TFR"," Richards Bay Station Road",1]
["Kwazulu Natal","TFR"," Richards Bay Urania Road",1]
["Kwazulu Natal","TFR"," Richards Bay various",1]
["Kwazulu Natal","TFR"," Richards Bay Ventura Road",1]
["Kwazulu Natal","TCC"," Richardsbay, 20  Brandon Road Empangeni",1]
["Kwazulu Natal","TCC"," Richardsbay, Off R102, Main Road Nsezi",1]
["Kwazulu Natal","TFR"," Rossburgh",1,1]
["Kwazulu Natal","TE"," Standerton",1,1]
["Kwazulu Natal","TFR"," Stanger",1,1]
["Kwazulu Natal","TPL"," TM1 Island View",1]
["Kwazulu Natal","TFR"," Tongaat Walr Reid Road",1,1]
["Kwazulu Natal","TPL"," Twini - Amanzimtoti",1,1]
["Kwazulu Natal","TFR"," Ulundi",1,1]
["Kwazulu Natal","TFR"," Umbilo Crane Street 6",1,1]
["Kwazulu Natal","TFR"," Umbilo Crane Street 8",1]
["Kwazulu Natal","TFR"," Volksrust",1,1]
["Kwazulu Natal","TE"," Vryheid (TE)",1,1]
["Kwazulu Natal","TFR"," Vryheid (TFR)",1]
["Kwazulu Natal","TPL"," Vryheid - Sheepersnek",1]
["Kwazulu Natal","TFR"," Vryheid EG Jansen Street",1]
["Kwazulu Natal","TFR"," Vryheid Hlobane Road",1]
["Kwazulu Natal","TFR"," Vryheid Jan Moolman Street",1]
["Kwazulu Natal","TFR"," Vryheid Mark Street",1]
["Kwazulu Natal","TFR"," Vryheid Melmoth Road",1]
["Kwazulu Natal","TFR"," Vryheid Tippet Drive",1]
["Kwazulu Natal","TCC"," Vryheid, Main Louwsburg Road",1]
["Kwazulu Natal",null,"Port of Richards Bay       Shop 5",1]
["Kwazulu Natal",null,"Port of Richards Bay      Central Stores",1]
["Kwazulu Natal",null,"Port of Richards Bay      Facilities Building",1]
["Kwazulu Natal",null,"Port of Richards Bay      HT Building",1]
["Kwazulu Natal",null,"Port of Richards Bay      Umhlathuze Building",1]
["Kwazulu Natal",null,"Port of Richards Bay      Fuel Bowser",1]
["Kwazulu Natal",null,"Port of Richards Bay      Old MHA",1]
["Kwazulu Natal",null,"Port of Richards Bay      CCR Building",1]
["Kwazulu Natal",null,"Port of Richards Bay      6 Series Ingwenya Building",1]
["Kwazulu Natal",null,"Port of Richards Bay      Import Building",1]
["Kwazulu Natal",null,"Port of Richards Bay      Export Mechnical Building",1]
["Kwazulu Natal",null,"Port of Richards Bay      Export Ops Building",1]
["Kwazulu Natal",null,"Port of Richards Bay      Export New Mechnical Workshop",1]
["Kwazulu Natal",null,"Port of Richards Bay      Finger Jetty",1]
["Kwazulu Natal",null,"Port of Richards Bay      7 Series Glass House",1]
["Kwazulu Natal",null,"Port of Richards Bay      708 Tower",1]
["Kwazulu Natal",null,"Port of Richards Bay      706 Tower",1]
["Kwazulu Natal",null,"Port of Richards Bay      Umkhombe Building",1]
["Kwazulu Natal",null,"Port of Richards Bay      MHA Building",1]
["Kwazulu Natal",null,"Port of Richards Bay      Endlovini Building",1]
["Kwazulu Natal",null,"Port of Richards Bay      Feroz Neobulk Building",1]
["Kwazulu Natal",null,"Port of Richards Bay      PRT Building",1]
["Kwazulu Natal",null,"Port of Richards Bay      Jamludi Building",1]
["Kwazulu Natal",null,"Port of Richards Bay      Substation A",1]
["Kwazulu Natal",null,"Port of Richards Bay      Substation B",1]
["Kwazulu Natal",null,"Port of Richards Bay      Substation C",1]
["Kwazulu Natal",null,"Port of Richards Bay      Substation D",1]
["Kwazulu Natal",null,"Port of Richards Bay      Substation E",1]
["Kwazulu Natal",null,"Port of Richards Bay      Substation F",1]
["Kwazulu Natal",null,"Port of Richards Bay      Substation G",1]
["Kwazulu Natal",null,"Port of Richards Bay      Substation H",1]
["Kwazulu Natal",null,"Port of Richards Bay      Substation I",1]
["Kwazulu Natal",null,"Port of Richards Bay      Substation J",1]
["Kwazulu Natal",null,"Port of Richards Bay      Substation K",1]
["Kwazulu Natal",null,"Port of Richards Bay      Substation L",1]
["Kwazulu Natal",null,"Port of Richards Bay      Substation L",1]
["Kwazulu Natal",null,"Port of Richards Bay      Substation M",1]
[]
[]
[{"$nulls":3},{"$f":"SUM(D2:D58)","v":57},{"$f":"SUM(E2:E58)","v":14}]

{"sheet":"Eastern Cape","index":2,"n_rows":56,"n_cols":5,"rows_kept":56}
["Region","OD","Site / Area / City / Town / Name","Site","Area/\nCity/\nTown"]
["Eastern Cape","TFR"," Bedford",1,1]
["Eastern Cape","TFR"," Burgersdorp",1,1]
["Eastern Cape","TFR"," Cookhouse",1,1]
["Eastern Cape","TFR"," Cradock Diamond Road",1,1]
["Eastern Cape","TFR"," Cradock Harnsweg",1]
["Eastern Cape",null," Port of East London ",1,1]
["Eastern Cape","TFR"," East London 46 North Street",1,1]
["Eastern Cape","TFR"," East London Cambridge Street",1]
["Eastern Cape","TE"," East London Meadow Road (TE)",1]
["Eastern Cape","TFR"," East London Meadow Road (TFR)",1]
["Eastern Cape","TFR"," East London Phillip Frame Road",1]
["Eastern Cape","TFR"," East London Signal Street",1]
["Eastern Cape","TE"," East London Two Rivers Drive",1]
["Eastern Cape","TFR"," East London Upper Wesrn Avenue",1]
["Eastern Cape","TCC"," East London, Off Meadow Road",1]
["Eastern Cape","TCC"," East London, Off Two Rivers Drive",1]
["Eastern Cape","TFR"," Humansdorp",1,1]
["Eastern Cape","TE"," Humewood",1,1]
["Eastern Cape","TFR"," Middelburg Station Street",1,1]
["Eastern Cape","TE"," New Brighton Wagons",1,1]
["Eastern Cape","TFR"," Noupoort",1,1]
["Eastern Cape","TE"," Noupoort Wagons",1,1]
["Eastern Cape","TFR"," Parson",1,1]
["Eastern Cape","TFR"," Port Elizabeth Broad Road",1,1]
["Eastern Cape","TFR"," Port Elizabeth Burman Road",1]
["Eastern Cape","TFR"," Port Elizabeth Fleming Street",1]
["Eastern Cape","TFR"," Port Elizabeth Grahamstown Road",1]
["Eastern Cape","TFR"," Port Elizabeth Harbour",1]
["Eastern Cape","TFR"," Port Elizabeth Inchape Road",1]
["Eastern Cape","TE"," Port Elizabeth John Tallant Road (TE)",1]
["Eastern Cape","TFR"," Port Elizabeth John Tallant Road (TFR)",1]
["Eastern Cape","TE"," Port Elizabeth Old Grahamstown Road",1]
["Eastern Cape","TE"," Port Elizabeth Patrson Road / North End SOE Training Centre",1]
["Eastern Cape","TFR"," Port Elizabeth Phillip Robertson",1]
["Eastern Cape","TFR"," Port Elizabeth Ries Street",1]
["Eastern Cape","TFR"," Port Elizabeth Strand Street",1]
["Eastern Cape","TCC"," Port Elizabeth, Cnr Broad Street & Person Road",1]
["Eastern Cape","TCC"," Port Elizabeth, Inchape Road",1]
["Eastern Cape","TCC"," Port Elizabeth, Patrson Road",1]
["Eastern Cape","TP"," Port Elizabeth, South End, Gqeberha",1]
["Eastern Cape","TE"," Queenstown Livingstone Street (TE)",1,1]
["Eastern Cape","TFR"," Queenstown Livingstone Street (TFR)",1]
["Eastern Cape","TFR"," Queenstown Queens Drive",1]
["Eastern Cape","TFR"," Riversdale",1,1]
["Eastern Cape","TFR"," Rosemead",1,1]
["Eastern Cape","TE"," Swartkops Diesel Depot",1,1]
["Eastern Cape","TE"," Swartkops Electrical Depot",1]
["Eastern Cape","TE"," Uitenhage Cuyler Manor",1,1]
["Eastern Cape","TFR"," Uitenhage Stow Road",1]
["Eastern Cape","TCC"," Uitenhage, John Tallant Road (TCC)",1]
["Eastern Cape","TCC"," Uitenhage, National Road",1]
["Eastern Cape","TFR"," Victoria west",1,1]
["Eastern Cape","TFR"," Willowmore",1,1]
[]
[{"$nulls":3},{"$f":"SUM(D1:D54)","v":53},{"$f":"SUM(E1:E54)","v":21}]

{"sheet":"Free State","index":3,"n_rows":60,"n_cols":5,"rows_kept":60}
["Region","OD","Site / Area / City / Town / Name","Site","Area/\nCity/\nTown"]
["Free State","TFR"," Arlington",1,1]
["Free State","TFR"," Bethlehem (TFR)",1,1]
["Free State","TPL"," Bethlehem (TPL)",1]
["Free State","TE"," Bethlehem Joubert Street",1]
["Free State","TFR"," Bethlehem Lood Street",1]
["Free State","TFR"," Bethlehem Station Road",1]
["Free State","TE"," Bethlehem, Loco Street",1]
["Free State","TFR"," Bloemfontein Glen Road",1,1]
["Free State","TFR"," Bloemfontein Gruis Street",1]
["Free State","TE"," Bloemfontein Long Street (TE)",1]
["Free State","TFR"," Bloemfontein Long Street (TFR)",1]
["Free State","TE"," Bloemfontein Maselspoort Road (TE)",1]
["Free State","TFR"," Bloemfontein Maselspoort Road (TFR)",1]
["Free State","TFR"," Bloemfontein Nathan Street",1]
["Free State","TFR"," Bloemfontein SATS Road",1]
["Free State","TE"," Bloemfontein Station Road",1]
["Free State","TE"," Bloemfontein Transnet Road (TE)",1]
["Free State","TFR"," Bloemfontein Transnet Road (TFR)",1]
["Free State","TE"," Bloemfontein Wagons C/O Nathan and N8, ",1]
["Free State","TCC"," Bloemfontein, 12 Gruis Street, Navalsig",1]
["Free State","TP"," Bloemfontein, 15 Blignaut Street. Hilton",1]
["Free State","TCC"," Bloemfontein, 3 Transnet Road, Linquinda",1]
["Free State","TCC"," Bloemfontein, 4 Transnet Road, Linquinda",1]
["Free State","TCC"," Bloemfontein, 5 Transnet Road, Linquinda",1]
["Free State","TP"," Bloemfontein, Gruis St, Noordhoek",1]
["Free State","TFR"," Bloemhof",1,1]
["Free State","TFR"," Christiana",1,1]
["Free State","TPL"," Coalbrook",1,1]
["Free State","TFR"," Drankenberg",1,1]
["Free State","TFR"," Edenburg",1,1]
["Free State","TFR"," Frere",1,1]
["Free State","TFR"," Groblershoop",1,1]
["Free State","TFR"," Harrismith",1,1]
["Free State","TFR"," Kimberley",1,1]
["Free State","TCC"," Kimberley, Gladstone Ave (TCC)",1]
["Free State","TPL"," Kroonstad (TPL)",1,1]
["Free State","TFR"," Kroonstad 6th Avenue",1]
["Free State","TE"," Kroonstad 7th Avenue",1]
["Free State","TFR"," Kroonstad Heckroodt Street",1]
["Free State","TE"," Kroonstad North Road (TE)",1]
["Free State","TFR"," Kroonstad North Road (TFR)",1]
["Free State","TFR"," Kroonstad Station Street",1]
["Free State","TFR"," Kroonstad Vermaak Street",1]
["Free State","TE"," Lime Acres (TE)",1,1]
["Free State","TFR"," Lime Acres (TFR)",1]
["Free State","TFR"," Petrusburg",1,1]
["Free State","TE"," Sasolburg (TE)",1,1]
["Free State","TPL"," Sasolburg (TPL)",1]
["Free State","TFR"," Sasolburg various",1]
["Free State","TFR"," Springfontein",1,1]
["Free State","TFR"," Theunissen",1,1]
["Free State","TPL"," Wilger",1,1]
["Free State","TPL"," Villiers",1,1]
["Free State","TFR","  Viljoensdrif",1,1]
["Free State","TFR"," Vryburg",1,1]
["Free State","TPL"," Warden",1,1]
["Free State","TFR"," Welkom Station Street",1,1]
[]
[{"$nulls":3},{"$f":"'Kwazulu Natal'!D172","v":57},{"$f":"SUM(E24:E58)","v":21}]

{"sheet":"Gauteng","index":4,"n_rows":128,"n_cols":5,"rows_kept":128}
["Region","OD","Site / Area / City / Town / Name","Site","Area/\nCity/\nTown"]
["Gauteng","TFR"," Alberton Union Street",1,1]
["Gauteng","TFR"," Alrode (TFR)",1,1]
["Gauteng","TPL"," Alrode (TPL)",1]
["Gauteng","TFR"," Benoni Stanley Road",1,1]
["Gauteng","TFR"," Benrose",1,1]
["Gauteng","TE"," Braamfontein (TE)",1,1]
["Gauteng","TFR"," Braamfontein Eloff Street",1]
["Gauteng","TFR"," Bronkhorstspruit",1,1]
["Gauteng","TE"," Capital Park (TE)",1,1]
["Gauteng","TFR"," Capital Park (TFR)",1]
["Gauteng","TP"," Carlton Centre, 150 Commissioner St, Marshalltown",1]
["Gauteng","TE"," City Deep (TE)",1]
["Gauteng","TFR"," City Deep (TFR)",1]
["Gauteng","TE"," City Deep Bonsmara",1]
["Gauteng","TE"," City Deep Rosherville Road",1]
["Gauteng","TFR"," Delmas",1,1]
["Gauteng","TFR"," Delmas Cilliersstraat",1]
["Gauteng","TCC"," Doornfontein, 141 Sivewright Avenue",1]
["Gauteng","TFR"," Edenvale",1,1]
["Gauteng","TFR"," Elandsfontein",1]
["Gauteng","TFR"," Esselenpark",1,1]
["Gauteng","TFR"," Fochville",1,1]
["Gauteng","TE"," Germiston Keswick Road",1,1]
["Gauteng","TE"," Germiston Railway Street",1]
["Gauteng","TE"," Germiston Stanley",1]
["Gauteng","TE"," Germiston Station Road",1]
["Gauteng","TFR"," Germiston Store Road",1]
["Gauteng","TE"," Germiston Stores",1]
["Gauteng","TFR"," Germiston various",1]
["Gauteng","TCC"," Germiston, 3 Keswick Road",1]
["Gauteng","TCC"," Germiston, Cnr Osnd & Elsburg Road",1]
["Gauteng","TFR"," Heidelberg various",1,1]
["Gauteng","TFR"," Isando Anvil Road 1",1]
["Gauteng","TFR"," Isando Industries Road",1]
["Gauteng","TE"," Isando Isando Road",1]
["Gauteng","TPL"," Jameson Park",1,1]
["Gauteng","TFR"," Jeppestown",1]
["Gauteng","TPL"," Johannesburg (TPL)",1]
["Gauteng","TFR"," Johannesburg Loveday Street",1]
["Gauteng","TFR"," Johannesburg Maritzburg Road",1]
["Gauteng","TFR"," Johannesburg Parktown Inyanda",1]
["Gauteng","TFR"," Johannesburg Pretoria Street",1]
["Gauteng","TFR"," Johannesburg Rissik Street",1]
["Gauteng","TFR"," Kazerne",1]
["Gauteng","TPL"," Kendal",1,1]
["Gauteng","TE"," Kilner Park",1]
["Gauteng","TE"," Koedoespoort",1]
["Gauteng","TFR"," Koedoespoort Blue Gum Street",1]
["Gauteng","TFR"," Koedoespoort Koedoespoort Road",1]
["Gauteng","TFR"," Koedoespoort Lynet Street",1]
["Gauteng","TFR"," Koedoespoort Thabo Sehume Street",1]
["Gauteng","TFR"," Koedoespoort Trans Road",1]
["Gauteng","TE"," Krugersdorp",1,1]
["Gauteng","TFR"," Krugersdorp Randfontein Road",1]
["Gauteng","TE"," Krugersdorp Station Road (TE)",1]
["Gauteng","TFR"," Krugersdorp Station Road (TFR)",1]
["Gauteng","TFR"," Krugersdorp various",1]
["Gauteng","TPL"," Langlaagte",1]
["Gauteng","TFR"," Langlaagte",1]
["Gauteng","TFR"," Leeuhof",1,1]
["Gauteng","TFR"," Luipaardsvlei",1,1]
["Gauteng","TPL"," Meyerton",1,1]
["Gauteng","TFR"," Midrand",1,1]
["Gauteng","TFR"," Millsite",1,1]
["Gauteng","TFR"," Natalspruit",1,1]
["Gauteng","TPL"," OR Tambo Airport",1]
["Gauteng","TP"," Park Hill - 23 Colin Wade Street.",1]
["Gauteng","TE"," Parktown (TE)",1]
["Gauteng","TFR"," Parktown Inyanda Precinct",1]
["Gauteng","TE"," Pretoria 3rd Avenue (TE)",1]
["Gauteng","TFR"," Pretoria 3rd Avenue (TFR)",1]
["Gauteng","TFR"," Pretoria Hardy Muller Street",1]
["Gauteng","TFR"," Pretoria Kgoshi Mampuru Street",1]
["Gauteng","TFR"," Pretoria Koos de La Rey Street 363",1]
["Gauteng","TFR"," Pretoria Koos de La Rey Street 440",1]
["Gauteng","TE"," Pretoria Lavender Road (TE)",1]
["Gauteng","TFR"," Pretoria Lavender Road (TFR)",1]
["Gauteng","TFR"," Pretoria Mansfield Avenue",1]
["Gauteng","TE"," Pretoria Mark Shuttleworth Street",1]
["Gauteng","TE"," Pretoria Meiring Naudé Road",1]
["Gauteng","TFR"," Pretoria Minaar Street",1]
["Gauteng","TFR"," Pretoria Old Warmbaths Road",1]
["Gauteng","TE"," Pretoria Paul Kruger Street (TE)",1]
["Gauteng","TFR"," Pretoria Paul Kruger Street (TFR)",1]
["Gauteng","TFR"," Pretoria Price Street",1]
["Gauteng","TFR"," Pretoria Rood",1]
["Gauteng","TFR"," Pretoria Scheiding Street",1]
["Gauteng","TFR"," Pretoria Skietpoort Laan",1]
["Gauteng","TFR"," Pretoria Solomon Street",1]
["Gauteng","TFR"," Pretoria Spoorweg Street",1]
["Gauteng","TFR"," Pretoria Sve Biko Road",1]
["Gauteng","TFR"," Pretoria Thabo Sehume street",1]
["Gauteng","TFR"," Pretoria Voortrekker Road",1]
["Gauteng","TCC"," Pretoria, 1 Hardy Muller Street",1]
["Gauteng","TCC"," Pretoria, 195 Minaar Street",1]
["Gauteng","TP"," Pretoria, 6 Minnaar St",1]
["Gauteng","TCC"," Pretoria, Cnr Price & Hoy Street",1]
["Gauteng","TCC"," Pretoria Paul Kruger Street",1]
["Gauteng","TFR"," Randfontein",1,1]
["Gauteng","TFR"," Roodepoort Station Road",1,1]
["Gauteng","TE"," Sentrarand (TE)",1,1]
["Gauteng","TFR"," Sentrarand Du Randt Street",1]
["Gauteng","TFR"," Sentrarand Kyalami Road",1]
["Gauteng","TE"," Sentrarand Station Road",1]
["Gauteng","TCC"," Sentrarand, 1 Du Randt Street, Putfontein",1]
["Gauteng","TP"," SentraRand, Farm Road",1]
["Gauteng","TE"," Springs (TE)",1,1]
["Gauteng","TFR"," Springs Appeal Street",1]
["Gauteng","TFR"," Springs Cosmos Avenue",1]
["Gauteng","TFR"," Springs Plantation Road",1]
["Gauteng","TFR"," Springs Wissel Road",1]
["Gauteng","TPL"," Tarlton",1,1]
["Gauteng","TP"," Tembisa, Namane Drive",1]
["Gauteng","TE"," Trichardt",1,1]
["Gauteng","TFR"," Vanderbijlpark",1,1]
["Gauteng","TE"," Vereeniging",1,1]
["Gauteng","TFR"," Vereeniging Hollywood Boulevard",1]
["Gauteng","TFR"," Vereeniging Loco Drive",1]
["Gauteng","TFR"," Vereeniging Viljoensdrift",1]
["Gauteng","TFR"," Vryheid Evans Street",1,1]
["Gauteng","TFR TPL"," Watloo",1]
["Gauteng","TP"," Welgedacht Hostel , Wissels Road,",1,1]
["Gauteng","TFR"," Welgedag",1]
["Gauteng","TFR"," Wickers Road",1]
["Gauteng","TFR"," Woodmead",1,1]
[]
[{"$nulls":3},{"$f":"SUM(D1:D126)","v":125},{"$f":"SUM(E1:E126)","v":33}]

{"sheet":"Limpopo","index":5,"n_rows":23,"n_cols":5,"rows_kept":23}
["Region","OD","Site / Area / City / Town / Name","Site","Area/\nCity/\nTown"]
["Limpopo","TFR"," Bela Bela Kretzschmar Street",1,1]
["Limpopo","TFR"," Hoedspruit",1,1]
["Limpopo","TFR"," Louis Trichardt",1,1]
["Limpopo","TFR"," Modimolle ",1,1]
["Limpopo","TFR"," Mokopane",1,1]
["Limpopo","TFR"," Musina",1,1]
["Limpopo","TCC"," Musina, Hapur Avenue",1,1]
["Limpopo","TFR"," Nylstroom",1,1]
["Limpopo","TE"," Phalaborwa (TE)",1,1]
["Limpopo","TFR"," Phalaborwa Foskor Private Road (TFR)",1]
["Limpopo","TE"," Phalaborwa Railway Station",1]
["Limpopo","TFR"," Polokwane Church Street",1,1]
["Limpopo","TFR"," Polokwane other",1]
["Limpopo","TE"," Polokwane Railway Street (TE)",1]
["Limpopo","TE"," Polokwane Witklip Street",1]
["Limpopo","TFR"," Steelpoort",1,1]
["Limpopo","TE"," Thabazimbi (TE)",1,1]
["Limpopo","TFR"," Thabazimbi (TFR)",1]
["Limpopo","TE"," Tzaneen",1,1]
["Limpopo","TFR"," Tzaneen Agatha Street and other",1]
[]
[{"$nulls":3},{"$f":"SUM(D2:D21)","v":20},{"$f":"SUM(E2:E21)","v":13}]

{"sheet":"Mpumalanga","index":6,"n_rows":57,"n_cols":5,"rows_kept":57}
["Region","OD","Site / Area / City / Town / Name","Site","Area/\nCity/\nTown"]
["Mpumalanga","TFR"," Amersfoort",1,1]
["Mpumalanga","TFR"," Balfour",1,1]
["Mpumalanga","TE"," Belfast (TE)",1,1]
["Mpumalanga","TFR"," Belfast (TFR)",1]
["Mpumalanga","TFR"," Bethal",1,1]
["Mpumalanga","TE"," Emalahleni (TE)",1,1]
["Mpumalanga","TFR"," Emalahleni (TFR)",1]
["Mpumalanga","TE"," Ermelo (TE)",1,1]
["Mpumalanga","TFR"," Ermelo Amersfoort Road",1]
["Mpumalanga","TFR"," Ermelo Industria Avenue",1]
["Mpumalanga","TFR"," Ermelo Kerk Street",1]
["Mpumalanga","TFR"," Ermelo Klein Street",1]
["Mpumalanga","TFR"," Ermelo Loco Street",1]
["Mpumalanga","TFR"," Ermelo Smuts Street",1]
["Mpumalanga","TFR"," Ermelo Wedgewood",1]
["Mpumalanga","TCC"," Ermelo, 78 Klein Street",1]
["Mpumalanga","TFR"," Hazyview",1,1]
["Mpumalanga","TFR"," Kaapmuiden various",1,1]
["Mpumalanga","TPL"," Kendal",1,1]
["Mpumalanga","TFR"," Komatipoort Baugeman Street and other",1,1]
["Mpumalanga","TE"," Komatipoort Hutton Street",1]
["Mpumalanga","TE"," Lydenburg (TE)",1,1]
["Mpumalanga","TE"," Lydenburg Railway Street (TE)",1]
["Mpumalanga","TFR"," Lydenburg various (TFR)",1]
["Mpumalanga","TFR"," Machadodorp",1,1]
["Mpumalanga","TFR"," Majuba Power Station",1,1]
["Mpumalanga","TFR"," Middelburg Gowen Street and other",1,1]
["Mpumalanga","TE"," Middelburg Station Street",1]
["Mpumalanga","TFR"," Nelspruit Andrew Street",1,1]
["Mpumalanga","TE"," Nelspruit Bonkenburg Street",1]
["Mpumalanga","TFR"," Nelspruit Bosch Street",1]
["Mpumalanga","TE"," Nelspruit Locomotive Street",1]
["Mpumalanga","TFR"," Nelspruit various",1]
["Mpumalanga","TFR"," Ogies Main Road and other",1,1]
["Mpumalanga","TFR"," Piet Retief",1,1]
["Mpumalanga","TFR"," Secunda (TFR)",1,1]
["Mpumalanga","TPL"," Secunda (TPL)",1]
["Mpumalanga","TPL"," Standerton (TPL)",1,1]
["Mpumalanga","TFR"," Standerton Bethal Road and other",1]
["Mpumalanga","TFR"," Trichardt",1,1]
["Mpumalanga","TE"," Vandyksdrif",1,1]
["Mpumalanga","TFR"," Volksrust",1,1]
["Mpumalanga","TE"," Waterval Boven (TE)",1,1]
["Mpumalanga","TFR"," Waterval Boven (TFR)",1]
["Mpumalanga","TFR"," White River",1,1]
["Mpumalanga","TE"," Witbank (TE)",1,1]
["Mpumalanga","TPL"," Witbank (TPL)",1]
["Mpumalanga","TFR"," Witbank Clever Street",1]
["Mpumalanga","TFR"," Witbank Coridor Cresent",1]
["Mpumalanga","TE"," Witbank Diederiek Street (TE)",1]
["Mpumalanga","TFR"," Witbank Diederiek Street (TFR)",1]
["Mpumalanga","TFR"," Witbank Main Street",1]
["Mpumalanga","TFR"," Witbank Thodes Road",1]
["Mpumalanga","TP"," Witbank, Celiwe Gardens",1]
[]
[{"$nulls":3},{"$f":"SUM(D2:D55)","v":54},{"$f":"SUM(E2:E55)","v":25}]

{"sheet":"North West Province","index":7,"n_rows":29,"n_cols":5,"rows_kept":29}
["Region","OD","Site / Area / City / Town / Name","Site","Area/\nCity/\nTown"]
["North West Province","TP"," Bloekomville, Margaretha, Prinsloo Street",1,1]
["North West Province","TFR"," Bloemhof",1,1]
["North West Province","TFR"," Brits",1,1]
["North West Province","TFR "," Christiana",1,1]
["North West Province","TE"," Coligny (TE)",1,1]
["North West Province","TFR"," Coligny (TFR)",1]
["North West Province","TE"," Klerksdorp (TE)",1,1]
["North West Province","TPL"," Klerksdorp (TPL)",1]
["North West Province","TFR"," Klerksdorp Delver Street",1]
["North West Province","TFR"," Klerksdorp Goldenway Street",1]
["North West Province","TFR"," Klerksdorp Margaretha Prinsloo",1]
["North West Province","TFR"," Lichtenburg (TFR)",1,1]
["North West Province","TE"," Lichtenburg Goedere Weg (TE)",1]
["North West Province","TE"," Mafikeng Modiri Molema Drive",1]
["North West Province","TE"," Mafikeng Station Road (TE)",1]
["North West Province","TFR"," Mafikeng Station Road (TFR)",1,1]
["North West Province","TFR"," Potchefstroom Piet Bosman Street and other",1]
["North West Province","TE"," Rustenburg (TE)",1,1]
["North West Province","TFR"," Rustenburg (TFR)",1]
["North West Province","TPL"," Rustenburg (TPL)",1]
["North West Province","TFR"," Rustenburg Beyers Naude",1]
["North West Province","TFR"," Rustenburg Zendeling Street",1]
["North West Province","TFR"," Sanniehof",1,1]
["North West Province","TFR"," Slurry",1,1]
["North West Province","TFR"," Ventersdorp",1,1]
["North West Province","TFR"," Vryburg",1,1]
["North West Province","TFR"," Zeerust",1,1]
[{"$nulls":3},{"$f":"SUM(D2:D28)","v":27},{"$f":"SUM(E2:E28)","v":14}]

{"sheet":"Northern Cape","index":8,"n_rows":50,"n_cols":5,"rows_kept":50}
["Region","OD","Site / Area / City / Town / Name","Site","Area/\nCity/\nTown"]
["Northern Cape ","TFR"," Kimberley, Beaconsfield (TFR)",1,1]
["Northern Cape","TE"," Bijilkor",1,1]
["Northern cape","TFR"," Brandvlei",1,1]
["Northern Cape","TFR"," De Aar Friedlander Street (TFR)",1,1]
["Northern Cape","TE"," De Aar Friedlander Street (TE)",1]
["Northern Cape","TE"," De Aar Voortrekker Street",1]
["Northern Cape","TCC"," De Aar, 195 Friedlander Street",1]
["Northern Cape ","TFR"," Groblershoop",1,1]
["Northern Cape","TFR"," Half Weg",1,1]
["Northern Cape","TFR"," Hope Town",1,1]
["Northern Cape","TFR"," Hotazel Station Road",1,1]
["Northern Cape","TE"," Kalahari St, Upington",1,1]
["Northern Cape","TE"," Kathu Sishen Mine (TE)",1,1]
["Northern Cape","TFR"," Kathu various (TFR)",1]
["Northern Cape","TFR"," Kenhardt",1,1]
["Northern Cape","TFR"," Kimberley 1B Austen Street",1]
["Northern Cape","TE"," Kimberley Austen Street",1]
["Northern Cape","TFR"," Kimberley Florance Road",1]
["Northern Cape","TE"," Kimberley Gladstone Ave",1]
["Northern Cape","TFR"," Kimberley Hercules Street",1]
["Northern Cape","TFR"," Kimberley Knight Street",1]
["Northern Cape","TFR"," Kimberley Landbou Weg",1]
["Northern Cape","TE"," Kimberley Oliver Road (TE)",1]
["Northern Cape","TFR"," Kimberley Oliver Street (TFR)",1]
["Northern Cape","TFR"," Kimberley Roper Street",1]
["Northern Cape","TE"," Kimberley Study Road (TE)",1]
["Northern Cape","TFR"," Kimberley Study Street (TFR)",1]
["Northern Cape","TP"," Kimberley, Austen Street, Beaconsfield,",1]
["Northern Cape","TCC"," Kimberley, Cnr Olive & Study Street",1]
["Northern Cape","TCC"," Kimberley, Florence Road",1]
["Northern Cape","TCC"," Kimberley, Gladstone Ave",1]
["Northern Cape","TP"," Kimberley, Knight Street",1]
["Northern Cape","TCC"," Kimberley, Landbou avenue, Alex Marshalling Yard",1]
["Northern Cape","TCC"," Kimberley, Study Street (TCC)",1]
["Northern Cape","TFR"," Lime Acres",1,1]
["Northern Cape","TFR"," Lohatlha",1,1]
["Northern Cape ","TFR"," Loriesfontein",1,1]
["Northern Cape","TE"," Noupoort (TE)",1,1]
["Northern Cape","TFR"," Noupoort Piet Retief Street Street (TFR)",1]
["Northern Cape","TFR"," Postmasburg various (TFR)",1,1]
["Northern Cape","TE"," Postmasburg, Beeshoek St (TE)",1]
["Northern Cape","TFR"," Rosmead Station Rd",1,1]
["Northern Cape","TFR"," Ulco",1,1]
["Northern Cape","TFR"," Upington Kalahari Street",1,1]
["Northern Cape","TFR"," Upington Orange River",1]
["Northern Cape","TFR"," Upington Robinson Street",1]
["Northern Cape","TFR"," Upington Station Road",1]
["Northern Cape","TFR"," Warrenton",1,1]
[{"$nulls":3},{"$f":"SUM(D2:D49)","v":48},{"$f":"SUM(E2:E49)","v":20}]

{"sheet":"Western Cape","index":9,"n_rows":64,"n_cols":5,"rows_kept":64}
["Region","OD","Site / Area / City / Town / Name","Site","Area/\nCity/\nTown"]
["Western Cape","TFR"," Beaufort West Hillside",1,1]
["Western Cape","TE"," Beaufort West Klub Street",1]
["Western Cape","TE"," Beaufort West Loch Weg",1]
["Western Cape","TFR"," Bellville AJ West Street",1,1]
["Western Cape","TE"," Bellville Caledon West Road (TE)",1]
["Western Cape","TFR"," Bellville Caledon West Road (TFR)",1]
["Western Cape","TFR"," Bellville Modderdam Road",1]
["Western Cape","TCC"," Bellville, 7 AJ West Street",1]
["Western Cape","TCC"," Bellville, 9 AJ West Street",1]
["Western Cape","TCC"," Bellville, a Caledon Wes Road",1]
["Western Cape","TP"," Bellville, Robert Sobukwe Road",1]
["Western Cape","TFR"," Caledon",1,1]
["Western Cape","TE"," Cape Town (TE)",1,1]
["Western Cape","TFR"," Cape Town Adderley Street",1]
["Western Cape","TFR"," Cape Town Container Road",1]
["Western Cape","TFR"," Cape Town Drommedaris Street",1]
["Western Cape","TE"," Cape Town Garret Street",1]
["Western Cape","TFR"," Cape Town High Street",1]
["Western Cape","TFR"," Cape Town Loco Drive",1]
["Western Cape","TFR"," Cape Town Loop Street",1]
["Western Cape","TFR"," Cape Town Main Road",1]
["Western Cape","TFR"," Cape Town Old Marine Drive",1]
["Western Cape","TFR"," Cape Town Robert Sobukwe",1]
["Western Cape","TFR"," Cape Town Solomon Street",1]
["Western Cape","TFR"," Cape Town South Arm Road",1]
["Western Cape","TFR"," Cape Town Station Road",1]
["Western Cape","TFR"," Cape Town Stoklery Road",1]
["Western Cape","TFR"," Cape Town Wagenaar Street",1]
["Western Cape","TP"," Cape Town,  1 Adderley St",1]
["Western Cape","TP"," Cape Town,  Caledon West Street",1]
["Western Cape","TFR"," Dal Josafat",1,1]
["Western Cape","TFR"," George (TFR)",1,1]
["Western Cape","TCC"," George, 2 Mission Road",1]
["Western Cape","TFR"," Huguenot",1,1]
["Western Cape","TFR"," Klapmuts",1,1]
["Western Cape","TFR"," Klawer (TFR)",1,1]
["Western Cape","TE"," Klawer High Street (TE)",1]
["Western Cape","TFR"," Lainsburg",1,1]
["Western Cape","TFR"," Maitland",1]
["Western Cape","TFR"," Malmesbury",1,1]
["Western Cape","TFR"," Moorreesburg Station Road",1,1]
["Western Cape","TFR"," Mossel Bay (TFR)",1,1]
["Western Cape","TE"," Mossel Bay Garrette Road (TE)",1]
["Western Cape","TFR"," Oudtshoorn Wagenaar Street",1,1]
["Western Cape","TFR"," Paarl",1,1]
["Western Cape","TE"," Piketburg Main Road",1,1]
["Western Cape","TCC"," Saldanah, Salkor Building, Orex Road",1,1]
["Western Cape","TE"," Saldanha (TE)",1]
["Western Cape","TFR"," Saldanha North West Crossing",1]
["Western Cape","TFR"," Saldanha Orex Street",1]
["Western Cape","TE"," Salt River (TE)",1]
["Western Cape","TFR"," Salt River Voortrekker Road 17",1]
["Western Cape","TCC"," Salt River, 19 Voortrekker Road",1]
["Western Cape","TFR"," Stellenbosch Station Road",1,1]
["Western Cape","TFR"," Vredenburg Vredenburg Road",1,1]
["Western Cape","TFR"," Vredendal",1,1]
["Western Cape","TFR"," Wellington",1,1]
["Western Cape","TFR"," Wolsey",1,1]
["Western Cape","TFR"," Worcester Bain Street",1,1]
["Western Cape","TFR"," Worcester Baring Street",1]
["Western Cape","TE"," Worcester Louis Lane Street (TE)",1]
["Western Cape","TFR"," Worcester Louis Lane Street (TFR)",1]
[{"$nulls":3},{"$f":"SUM(D2:D63)","v":62},{"$f":"SUM(E2:E63)","v":23}]

{"sheet":"Roaming","index":10,"n_rows":4,"n_cols":2,"rows_kept":4}
["Region","Site / Town / Area"]
["Roaming","Phelophepha Trains"]
["Roaming (only in Gauteng)","Test Coaches"]
["Roaming","Blue Train"]

{"sheet":"Overborder","index":11,"n_rows":10,"n_cols":3,"rows_kept":10}
["Country","City","Users"]
["Botswana","Gaborone",4]
["Botswana","Mahalapye",4]
["Lesotho","Maseru",2]
["Mozambique","Maputo",5]
["Zambia","Ndola",9]
["Zambia","Livingstone",3]
["Zimbabwe","Beit Bridge",2]
["Zimbabwe","Bulawayo",8]
["Zimbabwe","Harare",1]

{"sheet":"Sheet1","index":12,"n_rows":0,"n_cols":0,"rows_kept":0}